bitfinex/quotes_BTCUSD_20250406
["timestamp","ask_amount","ask_price","bid_price","bid_amount"]
[1743972812785,0.15,78820.0,78804.0,0.012689]
[1743972812994,0.02310641,78821.0,78806.0,0.012689]
[1743972813200,0.01156436,78819.0,78806.0,0.012689]
[1743972813407,0.02310641,78818.0,78813.0,0.012688]
[1743972813616,0.02310641,78818.0,78814.0,0.00190536]
[1743972813821,0.02310641,78817.0,78814.0,0.00190536]
[1743972814025,0.02310641,78817.0,78813.0,0.01459342]
[1743972814232,0.02310641,78817.0,78812.0,0.253767]
[1743972814233,0.01156436,78816.0,78812.0,0.253767]
[1743972814440,0.01156436,78816.0,78803.0,0.9142]
[1743972814441,0.03467077,78816.0,78804.0,0.26948]
[1743972814637,0.03467077,78816.0,78805.0,0.266477]
[1743972814870,0.02310641,78815.0,78813.0,0.012688]
[1743972815079,0.02310641,78815.0,78811.0,0.00190554]
[1743972815284,0.02310641,78815.0,78813.0,0.253765]
[1743972815499,0.00013658,78825.0,78812.0,0.001]
[1743972815500,0.03467077,78814.0,78812.0,0.001]
[1743972815713,0.03467077,78814.0,78813.0,0.0715621]
[1743972815919,0.02310641,78813.0,78812.0,0.001]
[1743972816576,0.03467077,78813.0,78812.0,0.001]
[1743972816784,0.03467077,78813.0,78801.0,0.253802]
[1743972817007,0.03467077,78813.0,78795.0,0.058791]
[1743972817212,0.03467077,78813.0,78795.0,0.012691]
[1743972817440,0.03467077,78813.0,78803.0,1.00562]
[1743972817876,0.03467077,78813.0,78812.0,0.002]
[1743972818309,0.03467077,78813.0,78803.0,0.9142]
[1743972818519,0.15,78809.0,78803.0,0.9162]
[1743972818763,0.00317238,78808.0,78803.0,0.9162]
[1743972818980,0.15,78809.0,78803.0,0.9162]
[1743972819191,0.03467077,78813.0,78806.0,0.253786]
[1743972819389,0.02310641,78808.0,78803.0,0.9162]
[1743972819604,0.02310641,78808.0,78803.0,0.9182]
[1743972819812,0.02310641,78807.0,78803.0,0.9162]
[1743972820037,0.02310641,78807.0,78803.0,1.169994]
[1743972820248,0.02310641,78807.0,78804.0,0.12289768]
[1743972820461,0.02310641,78806.0,78803.0,0.9162]
[1743972820678,0.03467077,78806.0,78803.0,0.9162]
[1743972820895,0.02310641,78805.0,78803.0,0.9162]
[1743972821400,0.02310641,78804.0,78803.0,0.9162]
[1743972821613,0.02310641,78804.0,78803.0,0.9142]
[1743972821848,0.02310641,78804.0,78803.0,0.9182]
[1743972822054,0.02310641,78804.0,78803.0,0.9162]
[1743972822279,0.03467077,78804.0,78803.0,0.9162]
[1743972822458,0.03467077,78804.0,78803.0,0.9182]
[1743972822697,0.03467077,78804.0,78803.0,0.9162]
[1743972822920,0.03467077,78804.0,78803.0,0.9142]
[1743972823325,0.03467077,78804.0,78803.0,0.9162]
[1743972823743,0.03467077,78804.0,78803.0,0.9142]
[1743972824180,0.03467077,78804.0,78803.0,0.9182]
[1743972824821,0.03467077,78804.0,78803.0,0.91184854]
[1743972825031,0.17635806,78804.0,78803.0,0.006]
[1743972825281,0.15757374,78804.0,78803.0,0.006]
[1743972826150,0.49757374,78804.0,78803.0,0.006]
[1743972826606,0.49757374,78804.0,78803.0,0.004]
[1743972827024,0.15,78792.0,78791.0,0.002]
[1743972827242,0.18467077,78792.0,78791.0,0.002]
[1743972827455,0.18467077,78792.0,78787.0,0.0001678]
[1743972827456,0.03467077,78792.0,78787.0,0.0001678]
[1743972827878,0.02310641,78791.0,78787.0,0.0001678]
[1743972828094,0.02310641,78790.0,78787.0,0.0001678]
[1743972828298,0.02310641,78790.0,78788.0,0.00030384]
[1743972828516,0.02310641,78790.0,78788.0,0.00230384]
[1743972828739,0.03784364,78789.0,78788.0,0.00230384]
[1743972828953,0.03784364,78789.0,78788.0,0.00030384]
[1743972828954,0.03784388,78789.0,78788.0,0.00030384]
[1743972829205,0.17953124,78789.0,78788.0,0.00030384]
[1743972829437,0.51953139,78789.0,78788.0,0.00030384]
[1743972829650,0.56505813,78789.0,78788.0,0.00030384]
[1743972830287,0.57959898,78789.0,78788.0,0.00130384]
[1743972830503,0.49,78772.0,78761.0,0.002]
[1743972830723,0.61290297,78772.0,78761.0,0.002]
[1743972830929,0.62446733,78772.0,78761.0,0.002]
[1743972831133,0.64757374,78772.0,78761.0,0.002]
[1743972831349,0.73507511,78772.0,78761.0,0.002]
[1743972832245,0.49757374,78772.0,78761.0,0.002]
[1743972832454,0.30757374,78772.0,78761.0,0.002]
[1743972832792,0.30957374,78772.0,78761.0,0.002]
[1743972833041,0.15957374,78772.0,78761.0,0.002]
[1743972833263,0.31074824,78772.0,78761.0,0.002]
[1743972833502,1e-08,78772.0,78771.0,0.0128628]
[1743972833753,0.00317365,78799.0,78778.0,0.012693]
[1743972833993,0.12290297,78798.0,78779.0,0.012693]
[1743972834203,0.15,78803.0,78785.0,0.012692]
[1743972834458,0.15,78803.0,78780.0,0.00190826]
[1743972834459,0.15,78794.0,78771.0,0.00030431]
[1743972834692,0.15,78798.0,78781.0,0.012693]
[1743972834917,0.12607604,78797.0,78772.0,0.12290297]
[1743972835164,0.00317307,78797.0,78779.0,0.014693]
[1743972835377,0.00317297,78797.0,78779.0,0.002]
[1743972835633,0.00317297,78797.0,78775.0,0.266581]
[1743972835872,0.00317297,78797.0,78781.0,0.002]
[1743972836322,0.00317297,78797.0,78785.0,0.001]
[1743972836549,0.12290297,78796.0,78785.0,0.001]
[1743972836774,0.00317313,78795.0,78781.0,0.002]
[1743972837009,0.15,78787.0,78781.0,0.001]
[1743972837245,0.12607642,78786.0,78781.0,0.001]
[1743972837475,0.12607642,78786.0,78780.0,0.91472]
[1743972837958,0.12290297,78786.0,78781.0,0.001]
[1743972838190,0.12290297,78786.0,78780.0,0.91472]
[1743972838191,0.15,78794.0,78780.0,0.91472]
[1743972838437,0.12607623,78793.0,78780.0,0.91472]
[1743972840070,0.12607623,78793.0,78780.0,0.91672]
[1743972840535,0.00317319,78792.0,78780.0,0.91472]
[1743972840767,0.00317314,78802.0,78780.0,0.91672]
[1743972841014,0.12290297,78801.0,78781.0,0.091672]
[1743972841250,0.00317314,78800.0,78781.0,0.091672]
[1743972841485,0.00317314,78800.0,78780.0,0.91572]
[1743972841486,0.12290297,78799.0,78780.0,0.91572]
[1743972841706,0.00317314,78798.0,78780.0,0.91572]
[1743972841935,0.12290297,78797.0,78780.0,0.91572]
[1743972842194,0.00317314,78796.0,78780.0,0.91472]
[1743972842413,0.12290297,78795.0,78781.0,0.091472]
[1743972842619,0.00317314,78794.0,78781.0,0.091472]
[1743972842827,0.12607611,78794.0,78781.0,0.091472]
[1743972843028,0.12607611,78794.0,78780.0,0.91472]
[1743972843240,0.00317314,78802.0,78783.0,0.012693]
[1743972843445,0.12290297,78801.0,78784.0,0.00190797]
[1743972843659,0.15,78811.0,78792.0,0.253829]
[1743972843870,0.12607552,78810.0,78784.0,0.13558968]
[1743972844069,0.46607552,78810.0,78785.0,0.012692]
[1743972844268,0.15,78817.0,78798.0,0.01269]
[1743972844475,0.15,78817.0,78786.0,0.12290297]
[1743972844476,0.15,78825.0,78806.0,0.012689]
[1743972844687,0.12607495,78824.0,78804.0,0.012689]
[1743972844895,0.12607495,78824.0,78801.0,0.266492]
[1743972845098,0.0003346,78836.0,78835.0,0.012684]
[1743972845304,0.0003346,78836.0,78830.0,0.9146]
[1743972845518,0.00079014,78836.0,78831.0,0.1181012]
[1743972845881,0.01158616,78835.0,78831.0,0.1181012]
[1743972846094,0.01158616,78835.0,78830.0,0.9146]
[1743972846303,0.00317124,78834.0,78830.0,0.9146]
[1743972846537,0.01158616,78833.0,78830.0,0.9146]
[1743972846990,0.01158616,78833.0,78831.0,0.002]
[1743972847464,0.12607436,78832.0,78830.0,0.9146]
[1743972847687,0.01158616,78833.0,78831.0,0.09146]
[1743972847912,0.00079014,78836.0,78833.0,0.012685]
[1743972848129,0.00079014,78836.0,78834.0,0.00190369]
[1743972848393,0.00079014,78836.0,78830.0,0.9156]
[1743972849034,0.00079014,78836.0,78830.0,1.180994]
[1743972849241,0.01156875,78835.0,78830.0,0.927285]
[1743972849451,0.01156875,78835.0,78830.0,0.9146]
[1743972849874,0.00317113,78834.0,78830.0,0.9146]
[1743972850084,0.14920036,78834.0,78831.0,0.002]
[1743972850292,0.12290297,78833.0,78830.0,0.9176]
[1743972850501,0.00317165,78832.0,78830.0,0.9156]
[1743972850708,0.12290297,78831.0,78830.0,0.9156]
[1743972851121,0.14601094,78831.0,78830.0,0.9166]
[1743972851323,0.14601094,78831.0,78830.0,0.9156]
[1743972851739,0.15757969,78831.0,78830.0,0.9156]
[1743972851949,0.19190548,78831.0,78830.0,0.001]
[1743972852156,0.53190548,78831.0,78830.0,0.001]
[1743972852395,0.52873383,78831.0,78830.0,0.001]
[1743972852583,0.15,78806.0,78803.0,0.9144]
[1743972852795,0.12607555,78805.0,78803.0,0.9144]
[1743972853000,0.1376443,78805.0,78803.0,0.9144]
[1743972853178,0.02310797,78804.0,78803.0,0.9144]
[1743972853785,0.02310797,78804.0,78803.0,0.9224]
[1743972853994,0.02310797,78804.0,78803.0,0.931089]
[1743972854188,0.02310797,78804.0,78803.0,1.00664]
[1743972854189,0.03467672,78804.0,78803.0,1.00664]
[1743972854356,0.03467672,78804.0,78803.0,1.027329]
[1743972854556,0.03467672,78804.0,78803.0,1.023329]
[1743972855847,0.03467672,78804.0,78803.0,0.931089]
[1743972855980,0.03467672,78804.0,78803.0,0.927089]
[1743972856189,0.03467672,78804.0,78803.0,1.182886]
[1743972856606,0.03467672,78804.0,78803.0,1.180886]
[1743972856833,0.03467672,78804.0,78803.0,1.182886]
[1743972857067,0.03467672,78804.0,78803.0,1.30778368]
[1743972857492,0.03467672,78804.0,78803.0,0.9164]
[1743972857698,0.03467672,78804.0,78803.0,0.9184]
[1743972858808,0.03467672,78804.0,78803.0,0.9164]
[1743972859037,0.03467672,78804.0,78803.0,1.182886]
[1743972859242,0.03467672,78804.0,78803.0,1.184886]
[1743972859454,0.03467672,78804.0,78803.0,1.0521156]
[1743972859692,0.03467672,78804.0,78803.0,1.0374266]
[1743972859935,0.03467672,78804.0,78803.0,0.9174]
[1743972860142,0.03467672,78804.0,78803.0,0.9154]
[1743972860648,0.03467672,78804.0,78803.0,1.04999197]
[1743972860904,0.00350626,78836.0,78820.0,0.012687]
[1743972861154,0.0003346,78836.0,78823.0,0.266415]
[1743972861377,0.00079014,78836.0,78833.0,0.2537]
[1743972861602,0.00079014,78836.0,78832.0,0.012685]
[1743972861823,0.00079014,78836.0,78835.0,0.012684]
[1743972862047,0.00079014,78836.0,78832.0,0.012685]
[1743972862501,0.00079014,78836.0,78835.0,0.266378]
[1743972862735,0.00079014,78836.0,78835.0,0.5069048]
[1743972863221,0.0023358,78839.0,78835.0,0.86644565]
[1743972863444,0.00247237,78839.0,78838.0,0.266368]
[1743972863699,0.00247237,78839.0,78838.0,0.49415831]
[1743972864172,0.0003356,78852.0,78851.0,0.266324]
[1743972864382,0.0003356,78852.0,78851.0,0.38922697]
[1743972865171,0.0003356,78852.0,78851.0,0.78032697]
[1743972865420,0.0003344,78871.0,78862.0,0.266287]
[1743972865660,0.00047107,78863.0,78862.0,0.38918997]
[1743972865898,0.00013647,78863.0,78862.0,0.38918997]
[1743972866950,0.00013647,78863.0,78862.0,0.39418997]
[1743972867416,0.0003344,78871.0,78862.0,0.39418997]
[1743972867417,0.0003344,78871.0,78868.0,0.62080785]
[1743972867596,0.00350409,78900.0,78882.0,0.26622]
[1743972867597,0.0003352,78900.0,78882.0,0.26622]
[1743972867807,0.0003352,78900.0,78882.0,0.38912297]
[1743972868640,0.0003352,78900.0,78875.0,0.012678]
[1743972868848,0.0003352,78900.0,78863.0,0.0461]
[1743972869060,0.15,78893.0,78863.0,0.0461]
[1743972869276,0.00316939,78892.0,78868.0,0.005]
[1743972869478,0.22684,78891.0,78868.0,0.005]
[1743972869684,0.15,78885.0,78863.0,0.05548284]
[1743972869891,0.12290297,78882.0,78862.0,0.01256091]
[1743972870098,0.00316964,78881.0,78875.0,0.005]
[1743972870351,0.12607261,78881.0,78875.0,0.005]
[1743972870555,0.12607261,78881.0,78862.0,0.01256091]
[1743972870816,0.12607261,78881.0,78868.0,0.005]
[1743972871056,0.15,78877.0,78863.0,0.005]
[1743972871268,0.1260729,78876.0,78875.0,0.004]
[1743972871678,0.1260729,78876.0,78863.0,0.005]
[1743972872515,0.00316993,78876.0,78863.0,0.005]
[1743972872730,0.00316964,78882.0,78864.0,0.02826242]
[1743972872939,0.12290297,78881.0,78864.0,0.00190172]
[1743972873118,0.00316964,78880.0,78875.0,0.004]
[1743972873355,0.15,78877.0,78875.0,0.004]
[1743972873566,0.12607281,78876.0,78875.0,0.003]
[1743972873779,0.12607281,78876.0,78855.0,0.00013647]
[1743972873780,0.15,78862.0,78855.0,0.00013647]
[1743972873959,0.00317049,78861.0,78855.0,0.00013647]
[1743972874450,0.12290297,78860.0,78855.0,0.00013647]
[1743972874651,0.34317099,78859.0,78855.0,0.00013647]
[1743972874861,0.12290297,78858.0,78855.0,0.00013647]
[1743972875080,0.23820552,78860.0,78855.0,0.00013647]
[1743972875081,0.15,78857.0,78855.0,0.00013647]
[1743972875291,0.23820552,78860.0,78855.0,0.00013647]
[1743972875292,0.23820552,78860.0,78857.0,0.266304]
[1743972875494,0.01152552,78859.0,78855.0,0.00013647]
[1743972875816,0.00317012,78858.0,78855.0,0.00013647]
[1743972876817,0.01469597,78857.0,78855.0,0.00013647]
[1743972877015,0.01152552,78857.0,78855.0,0.00313647]
[1743972877463,0.01152552,78857.0,78855.0,0.00613647]
[1743972877664,0.01152552,78857.0,78855.0,0.00313647]
[1743972877875,0.01152552,78867.0,78855.0,0.00313647]
[1743972878080,0.13442849,78867.0,78855.0,0.00313647]
[1743972878268,0.00317019,78866.0,78855.0,0.00013647]
[1743972878471,0.12290297,78865.0,78855.0,0.00313647]
[1743972878692,0.12607337,78866.0,78855.0,0.00313647]
[1743972878889,0.0031704,78864.0,78855.0,0.00313647]
[1743972879103,0.0031704,78864.0,78855.0,0.00013647]
[1743972879313,0.0031704,78864.0,78855.0,0.00313647]
[1743972879654,0.0031704,78864.0,78855.0,0.00013647]
[1743972880077,0.0031704,78864.0,78855.0,0.00313647]
[1743972880303,0.01152552,78863.0,78855.0,0.00313647]
[1743972880506,0.00317027,78862.0,78855.0,0.00313647]
[1743972880906,0.00317027,78862.0,78855.0,0.00613647]
[1743972881330,0.01152552,78861.0,78855.0,0.00313647]
[1743972881561,0.01152552,78861.0,78855.0,0.00513647]
[1743972881562,0.15,78856.0,78855.0,0.00513647]
[1743972881744,0.27607383,78856.0,78855.0,0.00513647]
[1743972881948,0.27290297,78856.0,78855.0,0.00013647]
[1743972882271,0.61290297,78856.0,78855.0,0.00513647]
[1743972882505,0.50940297,78856.0,78855.0,0.00313647]
[1743972882710,0.15,78842.0,78827.0,0.91384]
[1743972882834,0.00317125,78841.0,78828.0,0.09266931]
[1743972883034,0.00317125,78841.0,78827.0,0.91429554]
[1743972883035,0.15,78834.0,78827.0,0.91429554]
[1743972883285,0.12607447,78833.0,78827.0,0.91429554]
[1743972883694,0.02305931,78832.0,78827.0,0.91429554]
[1743972883899,0.01152552,78831.0,78827.0,0.91629554]
[1743972884105,0.01152552,78831.0,78828.0,0.09164626]
[1743972884308,0.02305931,78830.0,78828.0,0.09164626]
[1743972884740,0.02305931,78830.0,78829.0,0.266398]
[1743972885062,0.00317103,78853.0,78841.0,0.012683]
[1743972885246,0.00317069,78855.0,78845.0,0.012683]
[1743972885444,0.02307438,78852.0,78839.0,0.012684]
[1743972885622,0.02307438,78852.0,78840.0,0.0279055]
[1743972885826,0.02307438,78851.0,78840.0,0.0279055]
[1743972886028,0.03461702,78851.0,78841.0,0.012683]
[1743972886228,0.03461702,78851.0,78840.0,0.0279055]
[1743972886229,0.02307438,78850.0,78840.0,0.0279055]
[1743972886671,0.02307438,78849.0,78840.0,0.0279055]
[1743972887247,0.03461702,78848.0,78841.0,0.03069655]
[1743972887653,0.02307438,78847.0,78840.0,0.003]
[1743972888052,0.02307438,78846.0,78840.0,0.003]
[1743972888499,0.02307438,78846.0,78841.0,0.004]
[1743972888689,0.02307438,78845.0,78841.0,0.004]
[1743972888894,0.03461702,78845.0,78840.0,0.003]
[1743972889126,0.03461702,78845.0,78844.0,0.012683]
[1743972889326,0.01154264,78845.0,78840.0,0.0334742]
[1743972889603,0.01154264,78845.0,78840.0,0.004]
[1743972890021,0.00317051,78861.0,78839.0,0.012684]
[1743972890022,0.03466618,78844.0,78839.0,0.012684]
[1743972890227,0.03466618,78844.0,78841.0,0.004]
[1743972890423,0.03466618,78844.0,78843.0,0.00839594]
[1743972890629,0.01154264,78844.0,78843.0,0.19955934]
[1743972890830,0.01154264,78844.0,78843.0,0.31430019]
[1743972891045,0.22648,78880.0,78867.0,0.266267]
[1743972891282,0.00350484,78886.0,78876.0,0.26624]
[1743972891529,0.00350484,78886.0,78864.0,0.01268]
[1743972891771,0.02315192,78882.0,78870.0,0.266258]
[1743972892003,0.02315192,78882.0,78865.0,0.33415333]
[1743972892233,0.02328837,78882.0,78868.0,0.012679]
[1743972892435,0.02315192,78881.0,78869.0,0.012679]
[1743972892691,0.02315192,78881.0,78870.0,0.012679]
[1743972892899,0.02315192,78881.0,78869.0,0.266261]
[1743972893104,0.02315192,78881.0,78870.0,0.012679]
[1743972893319,0.02315192,78880.0,78870.0,0.00196237]
[1743972893725,0.02315192,78880.0,78868.0,0.017679]
[1743972893921,0.02315192,78880.0,78871.0,0.266256]
[1743972894131,0.00013645,78882.0,78873.0,0.26625]
[1743972894132,0.02315192,78879.0,78873.0,0.26625]
[1743972894346,0.02315192,78878.0,78874.0,0.012678]
[1743972894596,0.02315192,78878.0,78873.0,0.26625]
[1743972894963,0.02315192,78877.0,78870.0,0.003]
[1743972895370,0.02315192,78876.0,78870.0,0.26926]
[1743972895572,0.02315192,78876.0,78874.0,0.004]
[1743972895792,0.02315192,78876.0,78871.0,0.01328175]
[1743972896021,0.02262968,78875.0,78872.0,0.012678]
[1743972896406,0.02262968,78875.0,78874.0,0.012678]
[1743972896762,0.00013645,78882.0,78874.0,0.015678]
[1743972896935,0.00013645,78882.0,78875.0,0.0294604]
[1743972897284,0.00013645,78882.0,78881.0,0.012677]
[1743972897752,0.00013645,78882.0,78881.0,0.13557997]
[1743972898157,0.00013645,78882.0,78878.0,0.266232]
[1743972898356,0.00013645,78882.0,78872.0,0.004]
[1743972898578,0.00013645,78882.0,78875.0,0.012678]
[1743972898759,0.00013645,78882.0,78881.0,0.005]
[1743972899101,0.00013645,78882.0,78871.0,0.266256]
[1743972899285,0.00013645,78882.0,78878.0,0.005]
[1743972899813,0.12290297,78881.0,78858.0,0.012681]
[1743972900044,0.00316964,78880.0,78863.0,0.1192945]
[1743972900304,0.00316964,78880.0,78863.0,0.1319745]
[1743972900527,0.00316964,78880.0,78864.0,0.01268]
[1743972900752,0.00013645,78882.0,78877.0,0.266235]
[1743972900932,0.00013645,78882.0,78880.0,0.266226]
[1743972901143,0.00013645,78882.0,78881.0,0.012677]
[1743972901270,0.00013645,78882.0,78881.0,0.12107081]
[1743972901471,0.00013645,78882.0,78881.0,0.24397378]
[1743972901672,0.00013645,78882.0,78878.0,0.005]
[1743972901876,0.00013645,78882.0,78880.0,0.253546]
[1743972902076,0.00013645,78882.0,78881.0,0.01457766]
[1743972902324,0.00013645,78882.0,78880.0,0.001]
[1743972902790,0.00013645,78882.0,78876.0,0.012678]
[1743972902952,0.01160965,78881.0,78872.0,0.012678]
[1743972903153,0.01160965,78881.0,78880.0,0.012677]
[1743972903308,0.01160965,78881.0,78880.0,0.1374803]
[1743972903518,0.01160965,78881.0,78880.0,0.4774803]
[1743972903726,0.01160965,78881.0,78880.0,0.53732082]
[1743972903933,0.01160965,78881.0,78880.0,0.58272082]
[1743972904159,0.01160965,78881.0,78880.0,0.7056185]
[1743972904658,4e-07,78886.0,78885.0,0.598533]
[1743972904860,0.0003352,78912.0,78898.0,0.266165]
[1743972905127,0.0003352,78912.0,78898.0,1.65716882]
[1743972905366,4e-07,78904.0,78903.0,0.352673]
[1743972905567,0.0003352,78912.0,78903.0,0.352673]
[1743972905568,0.0003352,78912.0,78907.0,0.606135]
[1743972905768,0.00047085,78908.0,78907.0,0.74357882]
[1743972905943,0.0003352,78912.0,78911.0,0.02721285]
[1743972906174,4e-07,78918.0,78917.0,0.28564185]
[1743972906380,0.11117264,78950.0,78925.0,0.01767]
[1743972906586,0.11117264,78950.0,78928.0,0.74850782]
[1743972906989,0.11117264,78950.0,78928.0,0.74350782]
[1743972907560,0.11117264,78950.0,78949.0,0.265994]
[1743972907760,0.11162765,78950.0,78947.0,1.166892]
[1743972907958,0.11162765,78950.0,78949.0,0.012666]
[1743972908163,0.11162765,78950.0,78949.0,0.15200429]
[1743972908379,0.11162765,78950.0,78949.0,0.49010982]
[1743972908583,0.11162765,78950.0,78949.0,0.53730982]
[1743972909185,0.0003342,78961.0,78956.0,0.35454085]
[1743972909395,0.00247061,78959.0,78958.0,0.62050385]
[1743972909597,0.00247061,78959.0,78958.0,0.74340682]
[1743972910449,0.0001671,78983.0,78982.0,0.265883]
[1743972910861,0.00030341,78983.0,78982.0,0.40332682]
[1743972911065,0.00030341,78983.0,78982.0,0.74332682]
[1743972911194,0.00030341,78983.0,78982.0,0.85315662]
[1743972911823,0.002,78989.0,78988.0,0.605863]
[1743972912024,0.002,78989.0,78988.0,1.65630682]
[1743972913210,0.00137,78989.0,78988.0,1.37590297]
[1743972913582,0.00137,78989.0,78988.0,1.51278547]
[1743972913997,0.00137,78989.0,78988.0,1.50778547]
[1743972914398,1e-06,78989.0,78988.0,1.53732632]
[1743972914604,1e-07,78991.0,78990.0,0.03219985]
[1743972914901,0.002,79019.0,79018.0,0.265761]
[1743972915131,0.002,79019.0,79018.0,0.41777117]
[1743972915132,0.00213631,79019.0,79018.0,0.41777117]
[1743972915537,0.00213631,79019.0,79018.0,0.16466517]
[1743972916938,0.00213631,79019.0,79018.0,0.18420602]
[1743972917171,0.00213631,79019.0,79018.0,0.18609407]
[1743972917689,0.00213631,79019.0,79018.0,0.18109407]
[1743972917951,0.00213631,79019.0,79018.0,0.52109407]
[1743972918149,0.00213631,79019.0,79018.0,0.51920602]
[1743972918390,0.00213631,79019.0,79018.0,0.52420602]
[1743972918632,0.00213631,79019.0,79018.0,0.51920602]
[1743972918878,0.00213631,79019.0,79018.0,0.54920602]
[1743972919196,0.00213631,79019.0,79018.0,0.52420602]
[1743972919396,0.0001671,79038.0,79020.0,0.012655]
[1743972919633,0.00062129,79038.0,79026.0,0.265735]
[1743972919858,0.00062129,79038.0,79029.0,0.012653]
[1743972920057,0.00062129,79038.0,79037.0,0.012652]
[1743972920397,0.00062129,79038.0,79035.0,0.012652]
[1743972920606,0.00062129,79038.0,79037.0,0.012652]
[1743972920809,0.00062129,79038.0,79018.0,0.005]
[1743972921090,0.00062129,79038.0,79026.0,0.91644]
[1743972921227,0.00062129,79038.0,79037.0,0.004]
[1743972921807,0.00062129,79038.0,79019.0,0.253101]
[1743972921932,0.00062129,79038.0,79037.0,0.005]
[1743972922142,0.12352426,79038.0,79037.0,0.005]
[1743972922337,0.15,79036.0,79026.0,0.91244]
[1743972922581,0.00316347,79035.0,79026.0,0.91244]
[1743972923038,0.12290297,79034.0,79026.0,0.91244]
[1743972923263,0.01140837,79034.0,79027.0,0.091244]
[1743972923459,0.00316316,79033.0,79027.0,0.091244]
[1743972923668,0.00316316,79033.0,79026.0,0.91244]
[1743972923669,0.0031633,79033.0,79026.0,0.91244]
[1743972923869,0.12290297,79032.0,79026.0,0.91244]
[1743972923996,0.22868361,79031.0,79026.0,0.91244]
[1743972924204,0.12290297,79030.0,79026.0,0.91544]
[1743972924419,0.00316361,79029.0,79027.0,0.003]
[1743972924622,0.00316361,79029.0,79026.0,0.91544]
[1743972925024,0.00316361,79029.0,79026.0,0.91844]
[1743972925218,0.12290297,79028.0,79026.0,0.003]
[1743972925421,0.22864423,79027.0,79026.0,0.003]
[1743972925648,0.3515472,79027.0,79026.0,0.003]
[1743972925849,0.34838297,79027.0,79026.0,0.003]
[1743972926046,0.15,79017.0,79000.0,0.00188963]
[1743972926253,0.12606722,79016.0,79000.0,0.09140096]
[1743972926449,0.00316425,79016.0,79000.0,0.09140096]
[1743972926622,0.01142077,79015.0,79009.0,0.26579]
[1743972926829,0.01142077,79015.0,79010.0,0.00188957]
[1743972927248,0.00316377,79028.0,79010.0,0.00188957]
[1743972927479,0.15,79018.0,79000.0,0.09540096]
[1743972927690,0.15,79018.0,79001.0,0.1007521]
[1743972927691,0.00316419,79017.0,79001.0,0.1007521]
[1743972927884,0.00316419,79017.0,78999.0,0.91212]
[1743972928094,0.00316419,79017.0,79010.0,0.004]
[1743972928316,0.00316419,79017.0,79010.0,0.009]
[1743972928520,0.00316419,79017.0,79010.0,0.004]
[1743972929306,0.00316419,79017.0,78999.0,0.91212]
[1743972929512,0.34,79031.0,79004.0,0.25315]
[1743972929723,0.15,79027.0,79005.0,0.00188997]
[1743972930049,0.12606695,79026.0,79000.0,0.091212]
[1743972930398,0.12606695,79026.0,79010.0,0.006]
[1743972930832,0.12606695,79026.0,79010.0,0.003]
[1743972931023,0.12606695,79026.0,79005.0,0.005]
[1743972932024,0.15,79018.0,79000.0,0.004]
[1743972932224,0.15,79010.0,79000.0,0.004]
[1743972932500,0.35142765,79009.0,79000.0,0.004]
[1743972932776,0.35142765,79009.0,78999.0,0.91212]
[1743972932777,0.15,79000.0,78999.0,0.91212]
[1743972933086,0.27290297,79000.0,78973.0,0.91208]
[1743972933295,0.1260679,78999.0,78974.0,0.37614897]
[1743972933498,0.15,79016.0,78997.0,0.253173]
[1743972933698,0.15,79016.0,78998.0,0.00189051]
[1743972933699,0.27606722,79016.0,78998.0,0.00189051]
[1743972933852,0.22536,79019.0,79000.0,0.003]
[1743972934053,0.35142711,79019.0,79005.0,0.005]
[1743972934255,0.34826297,79019.0,79001.0,0.00189028]
[1743972934441,0.00316414,79018.0,78997.0,0.00013631]
[1743972934848,0.00316414,79018.0,78997.0,0.91221631]
[1743972935056,0.27290297,79017.0,78997.0,0.91221631]
[1743972935250,0.22532,79017.0,79000.0,0.005]
[1743972935478,0.22532,79017.0,78998.0,0.12290297]
[1743972935678,0.22532,79017.0,78999.0,0.012658]
[1743972936006,0.22532,79017.0,78998.0,0.12290297]
[1743972936200,0.003164,79016.0,79005.0,0.004]
[1743972936353,0.22532,79017.0,79005.0,0.004]
[1743972936558,0.22532,79017.0,79002.0,0.265813]
[1743972936852,0.22532,79017.0,78999.0,0.38872268]
[1743972937054,0.22532,79017.0,79005.0,0.012657]
[1743972937259,0.22532,79017.0,79005.0,0.05572657]
[1743972937496,0.22532,79017.0,79005.0,0.003]
[1743972937737,0.00316391,79021.0,79005.0,0.003]
[1743972937947,0.00316391,79021.0,79006.0,0.253142]
[1743972938188,0.00316391,79021.0,79005.0,0.003]
[1743972938616,0.0459,79031.0,79005.0,0.003]
[1743972938617,0.22528,79031.0,79013.0,0.265776]
[1743972938818,0.22528,79032.0,79023.0,0.012654]
[1743972939153,0.22528,79032.0,79018.0,0.01454391]
[1743972939325,0.00316345,79031.0,79018.0,0.265761]
[1743972939527,0.00316345,79031.0,79019.0,0.2531]
[1743972939683,0.00316345,79031.0,79020.0,0.0544181]
[1743972939883,0.00316345,79031.0,79017.0,0.265764]
[1743972940090,0.0001671,79038.0,79030.0,0.012653]
[1743972940310,0.00045419,79031.0,79028.0,0.012653]
[1743972940537,0.00045419,79031.0,79028.0,0.00188824]
[1743972940711,0.00045419,79031.0,79024.0,0.26574]
[1743972940919,0.00045419,79031.0,79025.0,0.0789588]
[1743972941116,0.00045419,79031.0,79023.0,0.001]
[1743972941325,0.00045419,79031.0,79030.0,0.001]
[1743972941527,0.00045419,79031.0,79025.0,0.012654]
[1743972941726,0.00045419,79031.0,79023.0,0.266744]
[1743972941727,0.00045419,79031.0,79023.0,0.001]
[1743972942124,0.12290297,79030.0,79005.0,0.352657]
[1743972942359,0.00316383,79029.0,79028.0,0.001]
[1743972942545,0.00316351,79029.0,79028.0,0.001]
[1743972942921,0.00316351,79029.0,79006.0,0.0958463]
[1743972943120,0.12606668,79028.0,79024.0,0.003]
[1743972943340,0.12606668,79028.0,79023.0,0.002]
[1743972943593,0.12606668,79028.0,78999.0,0.34969725]
[1743972943803,0.12606668,79028.0,78997.0,0.924738]
[1743972943804,0.15,79016.0,79000.0,0.03935443]
[1743972944011,0.35122745,79015.0,79001.0,0.03935443]
[1743972944215,0.34806297,79015.0,78997.0,0.91208]
[1743972945050,0.15,79003.0,79000.0,0.005]
[1743972945256,0.35122775,79002.0,79000.0,0.005]